bitfinex/quotes_ETHUSD_20251119
["timestamp","ask_amount","ask_price","bid_price","bid_amount"]
[1763576917061,0.4811,2893.3,2892.0,0.124]
[1763576917286,0.4811,2893.2,2892.1,0.124]
[1763576917498,0.4811,2893.2,2891.8,0.1994]
[1763576917700,0.4811,2893.2,2891.9,0.124]
[1763576918023,8.31741085,2893.4,2891.9,0.124]
[1763576918024,0.43526987,2893.4,2891.9,0.124]
[1763576918302,0.47786695,2893.7,2892.0,0.405504]
[1763576918303,0.002,2893.7,2892.0,0.405504]
[1763576918460,0.4952,2893.6,2892.2,0.405504]
[1763576918665,8.81261085,2893.6,2891.8,0.1994]
[1763576918885,12.26853708,2893.6,2891.9,0.124]
[1763576919090,0.002,2893.7,2890.2,0.596004]
[1763576919091,8.31741085,2893.1,2890.2,0.596004]
[1763576919288,8.31741085,2893.1,2890.3,0.124]
[1763576919474,0.4952,2893.0,2890.4,0.405504]
[1763576919682,0.4952,2893.0,2890.2,0.1905]
[1763576919683,1.40219264,2893.0,2890.5,0.124]
[1763576919882,1.40219264,2893.0,2890.2,0.1905]
[1763576919883,0.1959,2892.9,2890.2,0.1905]
[1763576920214,0.90699264,2892.5,2890.2,0.1905]
[1763576920496,1.34226251,2892.5,2890.3,0.124]
[1763576920673,8.31741085,2892.1,2890.4,0.124]
[1763576920874,0.90699264,2892.0,2890.2,0.1905]
[1763576921083,1.40219264,2892.0,2890.2,0.1905]
[1763576921281,1.40219264,2892.0,2889.2,1.31019408]
[1763576921282,8.31741085,2891.6,2889.2,1.31019408]
[1763576921688,0.90699264,2891.0,2888.0,9.35731004]
[1763576921880,0.90699264,2890.5,2888.1,0.124]
[1763576922184,0.90699264,2890.5,2887.6,8.31841085]
[1763576922380,1.61354035,2890.4,2887.7,0.95584109]
[1763576922580,0.6911,2890.4,2887.7,1.89746336]
[1763576922772,0.4952,2890.3,2887.7,0.83184109]
[1763576922974,0.4952,2890.3,2887.8,0.124]
[1763576923407,0.4952,2890.3,2887.7,0.83184109]
[1763576923583,0.4952,2890.3,2887.8,0.124]
[1763576923779,0.41508719,2890.2,2887.8,0.124]
[1763576923983,0.41508719,2890.2,2887.9,0.124]
[1763576923984,9.63949068,2890.2,2887.9,0.124]
[1763576924207,0.4952,2890.1,2887.9,0.124]
[1763576924505,0.4952,2890.1,2888.0,0.405504]
[1763576924806,0.4952,2890.1,2887.9,0.124]
[1763576924981,1.01346907,2890.0,2888.0,0.124]
[1763576925481,0.4952,2889.9,2888.0,0.124]
[1763576925902,0.4952,2889.9,2888.1,0.124]
[1763576926082,0.4952,2889.9,2887.6,0.001]
[1763576926083,0.4952,2889.9,2888.3,0.405504]
[1763576926285,0.4952,2889.9,2888.4,0.03462124]
[1763576926495,0.4952,2889.9,2888.5,0.03462004]
[1763576926698,0.4952,2889.9,2888.3,0.405504]
[1763576926896,0.4952,2889.9,2888.7,0.405504]
[1763576927099,0.4952,2890.3,2888.7,0.405504]
[1763576927902,0.4952,2890.3,2888.9,0.405504]
[1763576928107,0.4952,2890.3,2888.7,0.405504]
[1763576928610,0.4952,2890.3,2888.8,0.124]
[1763576928795,0.4952,2890.3,2888.9,0.405504]
[1763576929893,0.4952,2890.3,2888.2,0.405504]
[1763576930120,0.4952,2890.3,2888.4,0.405504]
[1763576930299,0.4952,2890.3,2888.6,0.405504]
[1763576930504,0.1959,2890.4,2888.6,0.405504]
[1763576930821,0.4952,2890.3,2888.8,0.405504]
[1763576932522,0.4952,2890.3,2888.7,0.74476338]
[1763576932730,0.4952,2890.3,2888.1,0.90699264]
[1763576932891,0.4952,2890.3,2887.6,0.001]
[1763576932892,1.40219264,2890.3,2888.2,0.124]
[1763576933221,0.4952,2890.2,2888.3,0.405504]
[1763576933512,0.4952,2890.2,2888.2,0.124]
[1763576933882,0.4952,2890.2,2888.2,1.03099264]
[1763576934082,0.4952,2890.2,2888.3,0.46829926]
[1763576934485,0.4952,2890.2,2888.4,0.405504]
[1763576934812,0.4952,2890.2,2888.3,0.46829926]
[1763576934813,6.91812979,2890.0,2888.3,0.46829926]
[1763576935006,0.90699264,2889.7,2888.4,0.124]
[1763576935510,0.4952,2889.9,2888.4,0.124]
[1763576935511,0.4952,2889.6,2888.4,0.124]
[1763576936385,0.4952,2889.6,2888.6,0.405504]
[1763576936593,0.4952,2889.6,2888.4,0.124]
[1763576936594,0.4952,2889.6,2888.5,0.405504]
[1763576937684,0.4952,2889.6,2888.6,0.124]
[1763576938182,0.4952,2890.1,2888.7,0.405504]
[1763576939313,0.4952,2890.1,2888.9,0.405504]
[1763576939484,0.1959,2890.4,2888.9,0.405504]
[1763576939685,0.4952,2890.3,2888.7,0.405504]
[1763576940314,0.4952,2890.3,2888.8,0.124]
[1763576940600,0.4952,2890.3,2888.9,0.405504]
[1763576940799,0.4952,2890.3,2888.9,0.529504]
[1763576941091,0.1959,2890.4,2888.9,0.529504]
[1763576941297,0.4952,2890.7,2888.7,0.90699264]
[1763576941298,0.1959,2890.7,2889.1,0.405504]
[1763576941501,0.1959,2890.7,2889.3,0.405504]
[1763576941705,0.6911,2890.7,2889.3,0.405504]
[1763576941919,0.6911,2890.7,2888.7,4.55899264]
[1763576941920,0.1959,2890.7,2889.5,0.405504]
[1763576942523,0.1959,2890.9,2889.7,0.405504]
[1763576943142,0.1959,2890.9,2889.5,0.405504]
[1763576944287,0.1959,2890.9,2889.6,0.124]
[1763576944288,0.4952,2890.8,2889.6,0.124]
[1763576944599,0.4952,2890.8,2888.5,0.001]
[1763576944600,6.91812979,2890.3,2888.5,0.001]
[1763576944792,0.69181298,2890.2,2888.5,0.125]
[1763576944991,0.4952,2890.1,2888.5,0.125]
[1763576945208,0.4952,2890.1,2888.5,0.81344903]
[1763576945545,0.4952,2890.8,2888.6,0.405504]
[1763576945882,0.4952,2890.8,2888.8,0.405504]
[1763576946104,0.4952,2890.8,2889.0,0.405504]
[1763576946404,0.4952,2891.2,2889.4,1.31249664]
[1763576946607,0.4952,2891.2,2889.6,0.405504]
[1763576946811,0.1959,2891.5,2889.6,0.405504]
[1763576947012,0.4952,2891.4,2889.6,0.405504]
[1763576947633,0.1959,2891.5,2889.8,0.405504]
[1763576947810,0.4952,2891.8,2890.0,0.405504]
[1763576948017,0.1959,2892.1,2890.0,0.405504]
[1763576948527,0.1959,2892.1,2890.0,1.09539698]
[1763576948729,0.1959,2892.1,2890.2,0.405504]
[1763576948936,0.1959,2892.1,2890.5,1.31249664]
[1763576949111,0.1959,2892.1,2890.7,0.405504]
[1763576950001,0.6905,2892.1,2890.7,0.405504]
[1763576950206,0.002,2892.8,2891.0,1.31249664]
[1763576950429,0.002,2892.8,2891.2,0.405504]
[1763576950630,0.002,2892.8,2891.4,1.31249664]
[1763576950797,0.002,2892.8,2891.4,0.405504]
[1763576951128,0.4946,2892.7,2891.4,0.405504]
[1763576951295,0.4946,2892.7,2890.8,0.90699264]
[1763576951296,0.4946,2892.7,2891.6,0.405504]
[1763576951497,0.4946,2892.7,2891.8,0.405504]
[1763576952128,0.4946,2892.7,2890.3,0.90699264]
[1763576952129,0.1946,2891.9,2890.4,0.405504]
[1763576952333,0.1946,2891.9,2890.5,0.124]
[1763576952501,0.1946,2891.9,2890.6,0.405504]
[1763576952828,0.1946,2891.9,2890.8,0.405504]
[1763576953343,0.1946,2891.9,2890.3,0.90699264]
[1763576953344,0.4946,2891.8,2890.1,0.21263896]
[1763576953498,0.4946,2891.8,2890.2,0.124]
[1763576953692,0.4946,2891.8,2889.7,0.90699264]
[1763576953693,0.4946,2891.8,2889.5,0.82306264]
[1763576953906,0.4946,2891.8,2889.6,0.124]
[1763576954731,0.4946,2891.8,2889.5,1.73005528]
[1763576954918,0.4946,2891.8,2889.6,0.124]
[1763576954919,6.90078513,2891.6,2889.6,0.124]
[1763576955241,0.69007851,2891.5,2889.6,0.124]
[1763576955530,0.4946,2891.4,2889.7,0.124]
[1763576955916,0.4946,2891.4,2889.8,0.405504]
[1763576957336,0.1946,2891.9,2889.8,0.405504]
[1763576957535,0.4946,2891.8,2889.8,0.405504]
[1763576957742,0.4946,2891.8,2890.0,1.31249664]
[1763576957915,0.4946,2891.8,2890.2,0.405504]
[1763576959515,0.1946,2891.9,2890.2,0.405504]
[1763576959717,0.1946,2891.9,2890.5,0.405504]
[1763576959913,0.4946,2892.5,2890.7,0.405504]
[1763576960117,0.4946,2892.5,2890.9,0.405504]
[1763576960348,0.4946,2892.5,2891.1,0.405504]
[1763576960512,0.4946,2892.5,2890.8,0.405504]
[1763576960917,0.4946,2892.5,2890.7,0.405504]
[1763576961238,0.4946,2892.5,2890.6,0.405504]
[1763576961434,0.4946,2892.5,2890.7,0.124]
[1763576961836,1.57984566,2892.5,2890.8,0.405504]
[1763576962026,0.4946,2892.5,2890.8,0.405504]
[1763576962231,0.002,2892.8,2890.8,0.405504]
[1763576962232,0.4946,2892.4,2890.8,0.405504]
[1763576962824,0.4946,2892.7,2890.8,4.057504]
[1763576963020,0.002,2892.8,2891.4,0.3468]
[1763576963224,0.002,2892.8,2891.6,0.405504]
[1763576964221,0.002,2892.8,2891.6,1.11038696]
[1763576964472,0.002,2892.8,2891.8,0.405504]
[1763576965522,0.002,2892.8,2892.0,0.405504]
[1763576965745,0.002,2892.8,2891.9,0.405504]
[1763576965948,0.002,2892.8,2892.1,0.405504]
[1763576966873,0.002,2892.8,2892.2,0.124]
[1763576967074,0.002,2892.8,2892.3,0.405504]
[1763576967770,0.002,2892.8,2889.5,0.05]
[1763576967771,0.4826,2892.7,2889.5,0.05]
[1763576967928,0.4826,2892.7,2890.5,0.90699264]
[1763576968255,0.4826,2892.7,2890.6,0.90477778]
[1763576968627,0.4826,2892.7,2890.7,0.405504]
[1763576968822,0.4826,2892.7,2891.1,1.31249664]
[1763576969067,0.4826,2892.7,2891.3,0.405504]
[1763576969645,0.4826,2892.7,2890.6,1.47142802]
[1763576969849,0.4826,2892.7,2890.7,0.99581501]
[1763576970055,0.4826,2892.7,2890.7,0.96122132]
[1763576970229,0.002,2892.8,2891.1,0.90699264]
[1763576970429,0.4826,2892.7,2891.2,0.405504]
[1763576970832,0.4826,2892.7,2890.7,0.83722132]
[1763576971050,0.4826,2892.7,2890.8,0.35486493]
[1763576971249,0.4826,2892.7,2890.9,0.124]
[1763576971451,0.4826,2892.7,2890.8,0.23086493]
[1763576971664,0.4826,2892.7,2890.9,0.124]
[1763576972481,6.90078513,2892.5,2890.9,0.124]
[1763576972642,0.69007851,2892.4,2890.9,0.124]
[1763576972831,1.17267851,2892.4,2890.9,0.124]
[1763576973179,0.4826,2892.3,2891.0,0.405504]
[1763576974383,0.4826,2892.3,2891.1,0.124]
[1763576974670,0.4826,2892.5,2891.2,0.405504]
[1763576975654,0.4826,2892.5,2890.9,0.405504]
[1763576975858,0.4826,2892.5,2891.0,0.124]
[1763576976295,0.4826,2892.5,2890.9,0.405504]
[1763576976475,0.4826,2892.5,2891.2,0.405504]
[1763576978283,0.5019,2892.8,2891.2,1.31249664]
[1763576978495,0.5019,2892.8,2891.4,0.405504]
[1763576979275,0.002,2892.8,2891.6,1.31249664]
[1763576979461,0.002,2892.8,2892.0,1.31249664]
[1763576979665,0.002,2892.8,2892.2,0.405504]
[1763576979864,0.002,2892.8,2892.4,0.405504]
[1763576980892,0.002,2892.8,2892.6,0.405504]
[1763576981100,0.5019,2892.8,2891.6,0.90699264]
[1763576981301,0.5019,2892.8,2891.7,0.124]
[1763576981492,0.5019,2892.8,2891.8,0.405504]
[1763576982887,0.002,2892.8,2891.8,0.405504]
[1763576983288,0.5019,2892.8,2891.8,0.405504]
[1763576983492,0.5019,2892.8,2892.0,0.405504]
[1763576985109,0.5019,2892.8,2892.2,0.405504]
[1763576985110,0.002,2892.8,2892.2,0.405504]
[1763576985277,0.002,2892.8,2892.0,0.405504]
[1763576985608,0.002,2892.8,2891.7,0.90699264]
[1763576985609,0.002,2892.8,2892.2,0.405504]
[1763576986534,0.5019,2892.8,2891.4,0.3468]
[1763576986680,0.5019,2892.8,2891.5,0.124]
[1763576987030,0.5019,2892.8,2891.3,0.9093566]
[1763576987175,0.5019,2892.8,2890.6,0.70301343]
[1763576987680,6.90132984,2892.7,2890.7,0.124]
[1763576988097,0.4999,2892.6,2890.7,0.124]
[1763576989724,0.4999,2892.6,2890.8,0.405504]
[1763576991060,0.4999,2892.6,2891.0,0.405504]
[1763576991352,0.4999,2892.6,2891.2,0.405504]
[1763576991565,0.002,2892.8,2891.3,0.124]
[1763576991719,0.002,2892.8,2891.4,0.405504]
[1763576992119,0.002,2892.8,2891.5,0.405504]
[1763576992430,0.002,2892.8,2891.5,1.31249664]
[1763576992624,0.002,2892.8,2891.7,0.405504]
[1763576994366,0.002,2892.8,2891.7,1.31249664]
[1763576994563,0.002,2892.8,2891.7,0.405504]
[1763576997771,0.002,2892.8,2892.1,1.31249664]
[1763576997918,0.002,2892.8,2892.1,0.405504]
[1763576998333,0.002,2892.8,2891.9,0.405504]
[1763576998562,0.4999,2892.7,2891.9,0.405504]
[1763576998864,0.4999,2892.7,2892.0,0.124]
[1763576999063,0.4999,2892.7,2892.2,0.405504]
[1763576999951,0.002,2892.8,2892.2,0.405504]
[1763577000318,0.4999,2892.7,2891.1,0.90699264]
[1763577000521,0.4999,2892.7,2890.8,0.001]
[1763577000765,0.1816,2890.9,2890.8,0.001]
[1763577001246,0.1816,2890.9,2889.1,1.31019408]
[1763577001247,0.4999,2890.8,2889.2,0.124]
[1763577001460,0.90084363,2890.7,2889.2,0.124]
[1763577001626,0.1816,2889.3,2889.2,0.124]
[1763577001813,0.1816,2889.3,2888.5,0.125]
[1763577002216,0.6815,2889.3,2888.5,0.125]
[1763577002648,0.1816,2889.3,2888.5,0.125]
[1763577004037,0.4999,2890.3,2888.7,8.32693627]
[1763577004242,0.90084363,2890.7,2889.3,0.405504]
[1763577004243,0.4999,2890.7,2889.3,0.405504]
[1763577004536,0.1816,2891.3,2889.8,0.405504]
[1763577004738,0.1816,2891.3,2889.4,0.15860926]
[1763577004739,0.1816,2891.3,2890.0,1.31249664]
[1763577004966,0.1816,2891.3,2890.2,0.405504]
[1763577005470,0.1816,2891.7,2890.3,0.0037]
[1763577006060,0.1816,2891.7,2890.6,0.405504]
[1763577006263,0.6815,2891.7,2890.8,0.405504]
[1763577006465,0.1816,2892.0,2890.8,0.405504]
[1763577006662,0.5019,2893.1,2891.2,0.405504]
[1763577006971,0.5019,2893.1,2891.1,0.90699264]
[1763577006972,0.1816,2892.9,2891.1,0.90699264]
[1763577007273,0.1816,2892.9,2891.2,1.43259689]
[1763577007670,0.1816,2892.9,2891.3,0.0037]
[1763577007846,0.1816,2892.9,2891.4,0.124]
[1763577008061,0.1816,2892.9,2891.6,1.31249664]
[1763577008254,0.002,2893.1,2892.1,1.31249664]
[1763577008453,0.002,2893.1,2892.3,0.405504]
[1763577009114,0.002,2893.1,2892.4,0.0037]
[1763577009468,0.002,2893.1,2892.8,1.31249664]
[1763577009795,0.002,2893.1,2892.9,0.124]
[1763577009996,0.002,2893.1,2893.0,0.405504]
[1763577010323,0.1938,2894.5,2893.0,0.405504]
[1763577010324,0.4704,2895.6,2893.4,0.05]
[1763577010616,0.1938,2895.1,2893.8,0.90699264]
[1763577010818,0.1938,2895.7,2893.9,1.32889689]
[1763577010965,0.1938,2895.7,2894.1,0.405504]
[1763577011167,0.1938,2895.7,2894.3,0.405504]
[1763577011402,0.1938,2895.7,2894.5,0.405504]
[1763577012192,0.1938,2895.7,2894.5,1.11030329]
[1763577012367,0.1938,2896.4,2894.6,0.529504]
[1763577012368,0.1938,2896.0,2894.6,0.529504]
[1763577012773,0.1938,2896.0,2894.6,0.8946481]
[1763577013108,0.4704,2895.7,2894.6,0.405504]
[1763577013484,0.4704,2895.7,2894.7,0.405504]
[1763577014186,0.1938,2896.0,2894.9,0.405504]
[1763577014386,0.4704,2895.9,2894.9,0.405504]
[1763577014586,0.4704,2895.9,2895.1,0.405504]
[1763577014973,0.4704,2895.9,2894.5,0.67745272]
[1763577015275,0.4704,2895.9,2893.3,8.32693627]
[1763577015276,3.92355791,2895.9,2893.3,8.32693627]
[1763577015576,1.31872843,2895.8,2893.4,0.124]
[1763577015795,0.88213579,2895.8,2893.4,0.124]
[1763577015998,0.4704,2895.7,2893.4,0.124]
[1763577016312,0.4704,2895.7,2893.8,8.32693627]
[1763577016610,0.4704,2895.7,2893.3,4.16493445]
[1763577016611,0.4704,2895.7,2893.9,0.124]
[1763577016906,0.4704,2895.7,2894.2,0.405504]
[1763577017490,0.4704,2895.7,2894.4,0.405504]
[1763577017811,0.4704,2895.7,2893.7,0.90699264]
[1763577018120,0.4704,2895.7,2893.8,0.124]
[1763577018328,0.4704,2895.7,2894.1,1.31249664]
[1763577018480,0.4704,2895.7,2894.0,8.32693627]
[1763577018481,0.4704,2895.7,2894.2,0.96394329]
[1763577018680,0.4704,2895.7,2894.2,0.124]
[1763577018898,0.4704,2895.7,2894.3,0.405504]
[1763577019107,0.4704,2895.7,2894.5,0.405504]
[1763577019881,0.1938,2896.0,2894.9,1.31249664]
[1763577020081,0.4704,2895.9,2894.9,0.90699264]
[1763577020425,0.4704,2895.9,2895.1,0.405504]
[1763577020630,0.4704,2895.9,2894.0,8.32693627]
[1763577020837,0.4704,2895.9,2894.1,0.124]
[1763577021133,3.92362466,2895.9,2893.3,0.69198101]
[1763577021333,0.4704,2895.9,2893.4,0.124]
[1763577021543,0.4704,2895.8,2893.5,0.124]
[1763577022022,0.4704,2895.8,2893.6,1.31249664]
[1763577022325,0.4704,2895.8,2893.8,0.405504]
[1763577023428,0.6642,2893.8,2892.2,0.96394329]
[1763577023731,0.6642,2893.8,2892.3,0.124]
[1763577023933,0.4704,2893.7,2892.3,0.124]
[1763577024230,0.1938,2892.4,2891.9,0.124]
[1763577024606,0.4704,2892.3,2891.9,0.124]
[1763577025533,0.1957,2892.7,2891.9,0.124]
[1763577025707,0.1957,2892.7,2892.0,0.405504]
[1763577025910,0.462,2892.6,2892.0,0.405504]
[1763577026234,0.1957,2893.1,2892.0,0.405504]
[1763577026639,0.1938,2893.8,2892.0,0.405504]
[1763577026952,0.1938,2893.8,2891.6,3.652]
[1763577026953,0.462,2893.7,2892.1,0.124]
[1763577027151,0.462,2893.7,2892.2,0.405504]
[1763577027517,0.462,2893.7,2891.8,0.405504]
[1763577027719,0.462,2893.7,2892.0,0.405504]
[1763577027935,0.462,2893.7,2891.8,0.405504]
[1763577028233,0.462,2893.7,2891.9,0.124]
[1763577028415,0.462,2893.7,2892.0,0.124]
[1763577028635,0.462,2893.7,2892.2,0.405504]
[1763577029736,0.462,2893.7,2892.4,0.405504]
[1763577030047,0.462,2893.7,2892.4,1.00449369]
[1763577030244,0.1957,2892.5,2891.8,0.001]
[1763577030425,0.1957,2893.0,2891.9,0.124]
[1763577030634,0.1957,2892.6,2892.0,0.405504]
[1763577031337,0.1957,2893.0,2892.0,0.405504]
[1763577032150,0.462,2893.7,2892.4,1.31249664]
[1763577032371,0.462,2893.7,2892.6,0.405504]
[1763577032571,0.462,2893.7,2892.8,0.405504]
[1763577032772,0.462,2894.2,2893.0,0.405504]
[1763577032973,0.462,2894.9,2893.0,0.405504]
[1763577033172,0.462,2894.9,2892.7,0.124]
[1763577033173,0.462,2894.9,2893.4,1.31249664]
[1763577033376,0.462,2894.9,2893.6,0.405504]
[1763577033585,0.1957,2895.0,2893.8,8.32693627]
[1763577033752,0.6577,2895.0,2893.5,0.96394329]
[1763577034072,0.6577,2895.0,2893.6,0.529504]
[1763577034370,0.462,2894.9,2893.6,0.529504]
[1763577034668,0.462,2894.9,2893.6,1.20663729]
[1763577034882,0.462,2894.9,2893.6,0.405504]
[1763577035106,0.462,2894.9,2893.1,0.90699264]
[1763577035107,0.462,2894.9,2893.8,0.405504]
[1763577036041,0.462,2894.9,2893.9,0.123]
[1763577036377,0.462,2894.9,2894.0,0.528504]
[1763577037577,0.462,2894.9,2893.6,0.70000896]
[1763577037745,0.462,2894.9,2893.7,0.123]
[1763577037947,0.462,2894.9,2893.8,0.123]
[1763577038146,0.462,2894.9,2892.6,8.32693627]
[1763577038402,7.37072703,2894.9,2892.7,0.92908796]
[1763577038599,0.90699264,2894.6,2891.8,0.68104731]
[1763577038899,1.37851854,2894.6,2891.9,0.123]
[1763577039198,0.9580259,2894.5,2891.8,0.68104731]
[1763577039355,0.4865,2894.5,2892.0,0.123]
[1763577039563,0.4865,2894.4,2892.0,0.123]
[1763577040703,3.94154904,2894.4,2892.1,0.405504]
[1763577040903,1.39184681,2894.3,2892.1,0.405504]
[1763577041066,1.87834681,2894.3,2892.1,0.405504]
[1763577041266,0.4865,2894.2,2892.1,0.405504]
[1763577041484,0.4865,2894.2,2892.3,0.405504]
[1763577041871,0.4865,2894.2,2891.8,0.69200823]
[1763577042068,1.09482732,2894.1,2891.8,0.001]
[1763577042382,0.31496553,2894.0,2891.9,0.123]
[1763577042608,0.1905,2892.0,2891.9,0.123]
[1763577042784,0.90699264,2893.8,2891.9,0.123]
[1763577042960,0.1905,2892.3,2891.9,0.123]
[1763577043305,6.91108884,2893.9,2891.9,0.123]
[1763577043306,0.1905,2892.6,2891.9,0.123]
[1763577043456,0.1905,2894.0,2892.0,0.405504]
[1763577043457,0.4865,2893.3,2892.0,0.405504]
[1763577043658,0.4865,2893.9,2892.2,0.405504]
[1763577043881,0.4865,2893.9,2892.4,0.405504]
[1763577044084,0.1905,2894.0,2892.7,1.31249664]
[1763577044389,0.4865,2894.3,2892.9,0.405504]
[1763577044565,0.4865,2894.3,2892.8,0.405504]
[1763577044888,0.4865,2894.3,2893.1,0.405504]
[1763577045188,0.4865,2894.3,2893.3,0.405504]
[1763577045400,0.1905,2893.4,2891.7,0.1352]
[1763577045702,0.1905,2893.4,2891.5,0.001]
[1763577045862,0.1905,2891.9,2891.5,0.001]
[1763577046397,0.1905,2891.9,2889.8,2.77140286]
[1763577046398,0.677,2891.9,2889.8,2.77140286]
[1763577046606,0.677,2891.9,2889.9,0.53834029]
[1763577046788,1.39349264,2891.8,2889.9,0.40014029]
[1763577046994,1.39349264,2891.8,2889.9,0.123]
[1763577047180,0.90699264,2891.1,2888.4,0.01407214]
[1763577047513,0.90699264,2890.9,2888.5,0.123]
[1763577047712,0.90699264,2891.4,2891.1,0.001]
[1763577048020,0.92339289,2891.3,2888.9,0.1352]
[1763577048317,0.92339289,2891.3,2890.9,0.001]
[1763577048318,0.4865,2891.2,2890.9,0.001]
[1763577048484,3.45889107,2891.1,2888.5,0.123]
[1763577048681,3.45889107,2891.1,2888.5,0.5315]
[1763577048888,3.45889107,2891.1,2890.6,0.001]
[1763577048889,0.4865,2891.0,2890.6,0.001]
[1763577049103,0.39453911,2890.9,2890.6,0.001]
[1763577049323,0.4865,2891.5,2890.6,0.001]
[1763577049506,0.4865,2892.0,2890.6,0.001]
[1763577049709,0.4865,2892.4,2891.0,0.405504]
[1763577050123,0.1905,2891.1,2890.6,0.001]
[1763577050506,0.1905,2891.5,2890.6,0.001]
[1763577051036,0.4865,2891.4,2890.6,0.001]
[1763577055231,0.31354947,2891.4,2890.6,0.001]
[1763577055391,0.1905,2891.5,2890.6,0.001]
[1763577057286,0.4865,2891.7,2890.6,0.001]
[1763577060829,0.1905,2891.8,2890.6,0.001]
[1763577061034,0.1905,2891.8,2890.7,0.405504]
[1763577061238,0.4865,2891.7,2890.7,0.405504]
[1763577061451,6.90702529,2891.4,2890.6,0.001]
[1763577061651,1.59769517,2891.3,2889.3,0.123]
[1763577061954,1.59769517,2891.3,2888.2,0.123]
[1763577061955,0.1905,2889.1,2888.2,0.123]
[1763577062158,0.1905,2889.7,2888.2,0.123]
[1763577062329,0.1905,2889.7,2888.3,1.41611508]
[1763577062515,0.1905,2890.1,2888.8,0.90699264]
[1763577062716,0.1905,2890.8,2888.8,0.90699264]
[1763577063030,0.1905,2890.8,2889.4,0.405504]
[1763577063031,0.677,2890.8,2889.4,0.405504]
[1763577063349,0.677,2890.8,2889.6,0.405504]
[1763577063758,0.4865,2891.4,2889.6,0.880004]
[1763577063957,0.4865,2891.4,2889.8,0.405504]
[1763577064316,0.4865,2891.4,2890.0,0.405504]
[1763577065521,0.4865,2891.4,2890.2,0.405504]
[1763577065825,0.1905,2891.8,2890.5,0.001]
[1763577066159,0.002,2891.4,2890.5,0.001]
[1763577066360,0.1905,2890.6,2890.5,0.001]
[1763577066760,0.1905,2890.6,2890.3,0.001]
[1763577066761,0.677,2890.6,2890.3,0.001]
[1763577067129,0.4865,2890.5,2890.3,0.001]
[1763577068433,0.4865,2890.5,2890.0,0.001]
[1763577068640,0.41365092,2890.4,2888.6,0.123]
[1763577069042,0.4743,2890.3,2888.7,0.17281764]
[1763577069242,3.93415359,2890.3,2888.0,0.173]
[1763577069441,0.4743,2890.3,2888.0,0.173]
[1763577069735,0.4743,2890.2,2888.0,0.173]
[1763577071330,0.39341563,2890.1,2888.2,7.36222529]
[1763577071528,0.4743,2890.2,2888.4,0.405504]
[1763577071959,0.4743,2890.2,2888.6,0.405504]
[1763577072733,0.4743,2890.2,2887.8,6.90702529]
[1763577072734,0.4743,2890.2,2887.9,0.4562]
[1763577072933,0.4743,2890.2,2888.2,0.123]
[1763577073276,0.4743,2890.2,2888.5,0.405504]
[1763577074753,0.4743,2890.2,2888.5,0.5782]
[1763577074933,0.4743,2890.2,2888.5,0.123]
[1763577075535,0.4743,2890.2,2888.7,0.405504]
[1763577075838,0.4743,2890.2,2888.6,0.405504]
[1763577076998,0.46647081,2890.1,2888.6,0.405504]
[1763577077202,0.73116318,2890.1,2888.6,0.405504]
[1763577077487,0.4743,2890.0,2888.6,0.405504]
[1763577077876,0.1838,2889.9,2888.6,0.405504]
[1763577078256,0.6581,2889.9,2888.6,0.405504]
[1763577078956,0.4743,2889.8,2888.6,0.405504]
[1763577079367,0.4743,2889.8,2888.1,0.001]
[1763577079570,0.4743,2889.8,2888.1,0.529504]
[1763577079995,0.4743,2889.8,2888.3,0.405504]
[1763577080576,0.4743,2889.8,2888.5,0.405504]
[1763577080907,0.4743,2890.4,2888.5,1.31249664]
[1763577081217,0.1905,2890.6,2888.7,0.405504]
[1763577081486,0.1838,2891.0,2889.0,1.31249664]
[1763577081692,0.4743,2890.8,2889.2,0.405504]
[1763577082089,0.4743,2890.8,2889.4,0.405504]
[1763577082462,0.4743,2890.8,2889.5,0.405504]
[1763577082870,0.4743,2890.8,2889.1,0.2612]
[1763577082871,0.4743,2890.8,2889.4,0.405504]
[1763577083695,0.4743,2890.8,2889.2,0.405504]
[1763577083896,0.4743,2890.8,2889.4,0.405504]
[1763577084364,0.4743,2890.8,2889.5,0.405504]
[1763577084562,0.4743,2890.8,2889.2,0.405504]
[1763577084978,0.4743,2890.8,2889.2,1.56751274]
[1763577085180,0.4743,2890.8,2889.4,0.405504]
[1763577086101,0.4743,2890.8,2889.2,0.405504]
[1763577086668,0.4743,2890.8,2889.2,0.868004]
[1763577088171,0.4743,2890.8,2889.4,0.405504]
[1763577088696,0.4743,2890.8,2889.6,0.405504]
[1763577088897,0.1838,2891.0,2889.6,0.868004]
[1763577089286,0.1838,2891.0,2889.8,0.405504]
[1763577089495,0.1838,2891.0,2890.0,0.405504]
[1763577089874,0.1838,2891.0,2890.2,0.405504]
[1763577090296,0.002,2891.4,2890.2,0.868004]
[1763577090669,0.002,2891.4,2890.4,0.405504]
[1763577090967,0.002,2891.4,2890.6,0.405504]
[1763577091302,0.002,2891.4,2891.3,0.578504]
[1763577091874,0.002,2891.4,2891.3,1.041004]
[1763577092282,0.002,2891.4,2891.3,8.85502193]
[1763577092505,0.90536049,2893.6,2891.3,8.85502193]
[1763577092506,0.1871,2893.3,2891.4,1.31249664]
[1763577092727,0.1871,2893.3,2891.9,8.21952193]